[Event "Early-Titled-Tuesday-Blitz-February-06-2024"]
[Site "Chess.com"]
[Date "2024.02.06"]
[Round "3"]
[White "Mikhail_Golubev"]
[Black "FabianoCaruana"]
[Result "0-1"]
[WhiteElo "2655"]
[BlackElo "3043"]
[TimeControl "180+1"]
[EndTime "8:28:38 PST"]
[Termination "FabianoCaruana won on time"]

1. e4 {[%clk 0:02:57.3]} 1... c5 {[%clk 0:03:00]} 2. Nf3 {[%clk 0:02:56.6]} 2...
Nc6 {[%clk 0:03:00.6]} 3. d4 {[%clk 0:02:53.6]} 3... cxd4 {[%clk 0:03:00.7]} 4.
Nxd4 {[%clk 0:02:54.5]} 4... Nf6 {[%clk 0:03:01.1]} 5. Nc3 {[%clk 0:02:54.7]}
5... e5 {[%clk 0:03:01.8]} 6. Ndb5 {[%clk 0:02:54.4]} 6... d6 {[%clk 0:03:02.3]}
7. Bg5 {[%clk 0:02:54.3]} 7... a6 {[%clk 0:03:02.8]} 8. Na3 {[%clk 0:02:54.3]}
8... b5 {[%clk 0:03:03.4]} 9. Bxf6 {[%clk 0:02:54.2]} 9... gxf6 {[%clk
0:03:04.3]} 10. Nd5 {[%clk 0:02:54.3]} 10... Bg7 {[%clk 0:03:04.4]} 11. c3
{[%clk 0:02:53.6]} 11... f5 {[%clk 0:03:03.7]} 12. exf5 {[%clk 0:02:51.8]} 12...
Bxf5 {[%clk 0:03:03.6]} 13. Nc2 {[%clk 0:02:52.5]} 13... O-O {[%clk 0:03:03.4]}
14. Nce3 {[%clk 0:02:53.1]} 14... Bd7 {[%clk 0:03:03.8]} 15. Bd3 {[%clk
0:02:44.1]} 15... f5 {[%clk 0:03:03.5]} 16. O-O {[%clk 0:02:43]} 16... e4 {[%clk
0:02:58.8]} 17. Bc2 {[%clk 0:02:41.6]} 17... Kh8 {[%clk 0:02:48.4]} 18. Qh5
{[%clk 0:02:29.5]} 18... Be8 {[%clk 0:02:40.5]} 19. Qh3 {[%clk 0:02:26.8]} 19...
Bd7 {[%clk 0:02:36.9]} 20. Qh5 {[%clk 0:02:26.8]} 20... Qe8 {[%clk 0:02:26.6]}
21. Qxe8 {[%clk 0:02:12.1]} 21... Raxe8 {[%clk 0:02:27.5]} 22. f4 {[%clk
0:02:05.1]} 22... exf3 {[%clk 0:02:12.4]} 23. Rxf3 {[%clk 0:02:01.3]} 23... f4
{[%clk 0:02:12.3]} 24. Nxf4 {[%clk 0:01:38.3]} 24... Rxe3 {[%clk 0:01:59.9]} 25.
Ng6+ {[%clk 0:01:31.3]} 25... hxg6 {[%clk 0:01:59.5]} 26. Rxe3 {[%clk
0:01:32.2]} 26... Ne5 {[%clk 0:01:49.6]} 27. Bb3 {[%clk 0:01:18.6]} 27... Bf5
{[%clk 0:01:44.2]} 28. Rd1 {[%clk 0:01:16.5]} 28... Rd8 {[%clk 0:01:25.1]} 29.
a4 {[%clk 0:01:15.8]} 29... bxa4 {[%clk 0:01:21.7]} 30. Bxa4 {[%clk 0:01:16.5]}
30... Nc4 {[%clk 0:01:20.4]} 31. Re8+ {[%clk 0:01:15.7]} 31... Rxe8 {[%clk
0:01:20.1]} 32. Bxe8 {[%clk 0:01:16.6]} 32... Be5 {[%clk 0:01:10.1]} 33. Ra1
{[%clk 0:01:09.2]} 33... Nxb2 {[%clk 0:01:07.4]} 34. Rxa6 {[%clk 0:01:08.3]}
34... Kg7 {[%clk 0:01:06]} 35. Bb5 {[%clk 0:00:45.7]} 35... Nd1 {[%clk
0:01:03.4]} 36. Rc6 {[%clk 0:00:35.1]} 36... Nxc3 {[%clk 0:01:02.1]} 37. Bf1
{[%clk 0:00:24.7]} 37... d5 {[%clk 0:00:47.5]} 38. Kf2 {[%clk 0:00:24.2]} 38...
d4 {[%clk 0:00:46]} 39. g3 {[%clk 0:00:21.7]} 39... Ne4+ {[%clk 0:00:33.4]} 40.
Ke1 {[%clk 0:00:19.4]} 40... Nf6 {[%clk 0:00:30.5]} 41. Bc4 {[%clk 0:00:17]}
41... Ng4 {[%clk 0:00:29.3]} 42. Be6 {[%clk 0:00:15.4]} 42... Be4 {[%clk
0:00:24.5]} 43. Ra6 {[%clk 0:00:07.1]} 43... Nxh2 {[%clk 0:00:24.5]} 44. Kf2
{[%clk 0:00:06.8]} 44... Nf3 {[%clk 0:00:23.4]} 45. Ra7+ {[%clk 0:00:05.7]}
45... Kh6 {[%clk 0:00:23.1]} 46. Bg4 {[%clk 0:00:05.2]} 46... Ng5 {[%clk
0:00:22.5]} 47. Bd1 {[%clk 0:00:03.7]} 47... d3 {[%clk 0:00:19.5]} 48. Ra4
{[%clk 0:00:03.7]} 48... Bc6 {[%clk 0:00:17.8]} 49. Rh4+ {[%clk 0:00:02.9]}
49... Kg7 {[%clk 0:00:17.6]} 50. Rg4 {[%clk 0:00:02.6]} 50... Kf6 {[%clk
0:00:14.5]} 51. Ke3 {[%clk 0:00:02.9]} 51... Bd7 {[%clk 0:00:11.7]} 52. Rb4
{[%clk 0:00:01.4]} 52... Bxg3 {[%clk 0:00:10.3]} 0-1

[Event "Early-Titled-Tuesday-Blitz-February-06-2024"]
[Site "Chess.com"]
[Date "2024.02.06"]
[Round "3"]
[White "stasOR4ik"]
[Black "Djager97"]
[Result "0-1"]
[WhiteElo "2407"]
[BlackElo "2594"]
[TimeControl "180+1"]
[EndTime "8:28:38 PST"]
[Termination "Djager97 won by resignation"]

1. e4 {[%clk 0:02:53.7]} 1... e6 {[%clk 0:02:58.8]} 2. b3 {[%clk 0:02:53]} 2...
d5 {[%clk 0:02:59.7]} 3. Bb2 {[%clk 0:02:52.8]} 3... Nf6 {[%clk 0:02:53.6]} 4.
e5 {[%clk 0:02:50.8]} 4... Nfd7 {[%clk 0:02:52.4]} 5. f4 {[%clk 0:02:49.1]} 5...
c5 {[%clk 0:02:47.8]} 6. Nf3 {[%clk 0:02:48.9]} 6... Nc6 {[%clk 0:02:48.2]} 7.
c3 {[%clk 0:02:46.1]} 7... f6 {[%clk 0:02:44.5]} 8. d4 {[%clk 0:02:46.2]} 8...
Be7 {[%clk 0:02:40.8]} 9. Bd3 {[%clk 0:02:44.3]} 9... O-O {[%clk 0:02:39.9]} 10.
O-O {[%clk 0:02:39.3]} 10... a5 {[%clk 0:02:24.3]} 11. Na3 {[%clk 0:02:36.9]}
11... b6 {[%clk 0:02:22.2]} 12. Nb5 {[%clk 0:02:36.3]} 12... Ba6 {[%clk
0:02:20.6]} 13. a4 {[%clk 0:02:35.5]} 13... cxd4 {[%clk 0:02:10.4]} 14. Nfxd4
{[%clk 0:02:30.7]} 14... Nxd4 {[%clk 0:02:07]} 15. Nxd4 {[%clk 0:02:20.6]} 15...
Bxd3 {[%clk 0:02:05.3]} 16. Qxd3 {[%clk 0:02:21.5]} 16... Nc5 {[%clk 0:02:01.6]}
17. Qe2 {[%clk 0:02:15]} 17... fxe5 {[%clk 0:01:58.6]} 18. fxe5 {[%clk
0:02:13.2]} 18... Qd7 {[%clk 0:01:57.9]} 19. Qg4 {[%clk 0:02:03.2]} 19... Rae8
{[%clk 0:01:39.2]} 20. Ba3 {[%clk 0:01:42.2]} 20... Rxf1+ {[%clk 0:01:00.8]} 21.
Rxf1 {[%clk 0:01:41.1]} 21... Nxb3 {[%clk 0:01:01.4]} 22. Bxe7 {[%clk 0:01:05]}
22... Nxd4 {[%clk 0:01:01]} 23. Qxd4 {[%clk 0:00:51.4]} 23... Qxe7 {[%clk
0:00:54.9]} 24. Qxb6 {[%clk 0:00:50.2]} 24... Qd8 {[%clk 0:00:47.1]} 25. Qa7
{[%clk 0:00:34.3]} 25... Qa8 {[%clk 0:00:29.5]} 26. Rf7 {[%clk 0:00:12.7]} 26...
Qxa7+ {[%clk 0:00:27.9]} 27. Rxa7 {[%clk 0:00:13.6]} 27... Rc8 {[%clk
0:00:27.9]} 28. Rxa5 {[%clk 0:00:12.5]} 28... Rxc3 {[%clk 0:00:28.2]} 29. Ra6
{[%clk 0:00:13.2]} 29... Kf7 {[%clk 0:00:27.8]} 30. Kf2 {[%clk 0:00:12.9]} 30...
Rc4 {[%clk 0:00:23.4]} 31. Kf3 {[%clk 0:00:12.4]} 31... Re4 {[%clk 0:00:23]} 32.
Ra7+ {[%clk 0:00:10.8]} 32... Kg6 {[%clk 0:00:22.1]} 33. a5 {[%clk 0:00:10.4]}
33... Rxe5 {[%clk 0:00:22.6]} 34. a6 {[%clk 0:00:11]} 34... Re4 {[%clk
0:00:22.8]} 35. Ra8 {[%clk 0:00:09.9]} 35... Ra4 {[%clk 0:00:21.9]} 36. g3
{[%clk 0:00:08.7]} 36... Kf5 {[%clk 0:00:18.2]} 37. Rf8+ {[%clk 0:00:07.9]}
37... Ke5 {[%clk 0:00:18.6]} 38. Ra8 {[%clk 0:00:08.2]} 38... Ra3+ {[%clk
0:00:17.4]} 39. Kf2 {[%clk 0:00:07]} 39... Ke4 {[%clk 0:00:17.9]} 40. a7 {[%clk
0:00:06.8]} 40... e5 {[%clk 0:00:17.4]} 41. h4 {[%clk 0:00:07.1]} 41... Ra2+
{[%clk 0:00:17.6]} 42. Kf1 {[%clk 0:00:07.1]} 42... d4 {[%clk 0:00:18.3]} 43. g4
{[%clk 0:00:06.5]} 43... d3 {[%clk 0:00:18.4]} 44. Ke1 {[%clk 0:00:05.7]} 44...
Ke3 {[%clk 0:00:17.8]} 45. Kf1 {[%clk 0:00:06.3]} 45... Ra1+ {[%clk 0:00:17]}
46. Kg2 {[%clk 0:00:06.1]} 46... d2 {[%clk 0:00:17.6]} 47. Re8 {[%clk
0:00:04.7]} 47... Rxa7 {[%clk 0:00:12.3]} 48. Rxe5+ {[%clk 0:00:05.3]} 48... Kd3
{[%clk 0:00:12.2]} 49. Re8 {[%clk 0:00:03.8]} 49... d1=Q {[%clk 0:00:11.3]} 50.
Rd8+ {[%clk 0:00:04]} 50... Ke2 {[%clk 0:00:11.5]} 51. Re8+ {[%clk 0:00:04.4]}
51... Kd2 {[%clk 0:00:11.8]} 52. Rd8+ {[%clk 0:00:04.9]} 52... Ke1 {[%clk
0:00:12.2]} 53. Rxd1+ {[%clk 0:00:03.6]} 53... Kxd1 {[%clk 0:00:11.4]} 54. Kf3
{[%clk 0:00:04.5]} 0-1

[Event "Early-Titled-Tuesday-Blitz-February-06-2024"]
[Site "Chess.com"]
[Date "2024.02.06"]
[Round "3"]
[White "mbchess97"]
[Black "vladgoncharov"]
[Result "0-1"]
[WhiteElo "2427"]
[BlackElo "2632"]
[TimeControl "180+1"]
[EndTime "8:28:39 PST"]
[Termination "vladgoncharov won on time"]

1. c4 {[%clk 0:03:00.9]} 1... Nf6 {[%clk 0:02:57.5]} 2. g3 {[%clk 0:03:01.3]}
2... c5 {[%clk 0:02:57]} 3. Bg2 {[%clk 0:03:01.8]} 3... Nc6 {[%clk 0:02:57.3]}
4. Nc3 {[%clk 0:03:01.4]} 4... g6 {[%clk 0:02:55.8]} 5. Nf3 {[%clk 0:03:01.3]}
5... d6 {[%clk 0:02:55.6]} 6. d4 {[%clk 0:03:00.5]} 6... cxd4 {[%clk 0:02:55.6]}
7. Nxd4 {[%clk 0:03:01.2]} 7... Bd7 {[%clk 0:02:56.2]} 8. O-O {[%clk 0:02:59.1]}
8... Bg7 {[%clk 0:02:55.6]} 9. Nxc6 {[%clk 0:02:52.5]} 9... Bxc6 {[%clk
0:02:55.4]} 10. Nd5 {[%clk 0:02:52.2]} 10... O-O {[%clk 0:02:49.1]} 11. Bg5
{[%clk 0:02:28.5]} 11... Bxd5 {[%clk 0:02:37.1]} 12. cxd5 {[%clk 0:02:27.8]}
12... h6 {[%clk 0:02:35.1]} 13. Bf4 {[%clk 0:02:16.7]} 13... Qa5 {[%clk
0:02:26.7]} 14. Qb3 {[%clk 0:02:11.2]} 14... Qb6 {[%clk 0:02:22.6]} 15. Qxb6
{[%clk 0:02:05.3]} 15... axb6 {[%clk 0:02:22.2]} 16. Be3 {[%clk 0:02:02.9]}
16... Nd7 {[%clk 0:02:13.1]} 17. a4 {[%clk 0:01:44]} 17... Bxb2 {[%clk
0:02:05.1]} 18. Rab1 {[%clk 0:01:43.3]} 18... Bf6 {[%clk 0:02:04.9]} 19. Bh3
{[%clk 0:01:39.3]} 19... Rfd8 {[%clk 0:01:50.8]} 20. Bxb6 {[%clk 0:01:32.8]}
20... Nxb6 {[%clk 0:01:50.2]} 21. Rxb6 {[%clk 0:01:32.8]} 21... Rxa4 {[%clk
0:01:50.6]} 22. Rxb7 {[%clk 0:01:32.8]} 22... Ra2 {[%clk 0:01:49.2]} 23. e3
{[%clk 0:01:30.1]} 23... Rda8 {[%clk 0:01:45.7]} 24. Rc1 {[%clk 0:01:25.2]}
24... Rd2 {[%clk 0:01:42]} 25. Bg2 {[%clk 0:01:07.4]} 25... Raa2 {[%clk
0:01:40]} 26. Rf1 {[%clk 0:01:07.5]} 26... h5 {[%clk 0:01:35.8]} 27. Rbb1 {[%clk
0:01:04.5]} 27... Bg5 {[%clk 0:01:32.9]} 28. Bf3 {[%clk 0:00:52.7]} 28... h4
{[%clk 0:01:27.6]} 29. Ra1 {[%clk 0:00:51.6]} 29... hxg3 {[%clk 0:01:23.2]} 30.
hxg3 {[%clk 0:00:50.9]} 30... Rxf2 {[%clk 0:01:22.7]} 31. Rxa2 {[%clk
0:00:39.9]} 31... Rxa2 {[%clk 0:01:22.1]} 32. e4 {[%clk 0:00:38.1]} 32... Kg7
{[%clk 0:01:18.8]} 33. Bg2 {[%clk 0:00:36.1]} 33... Bf6 {[%clk 0:01:18.8]} 34.
Kh2 {[%clk 0:00:34.9]} 34... Be5 {[%clk 0:01:18.7]} 35. Kh3 {[%clk 0:00:33.9]}
35... Ra4 {[%clk 0:01:13.2]} 36. Bf3 {[%clk 0:00:29.2]} 36... Ra3 {[%clk
0:01:10.8]} 37. Kg2 {[%clk 0:00:26.9]} 37... Kh6 {[%clk 0:01:08.2]} 38. Rh1+
{[%clk 0:00:23.8]} 38... Kg5 {[%clk 0:01:07.9]} 39. Rf1 {[%clk 0:00:18.7]} 39...
f5 {[%clk 0:01:07.5]} 40. exf5 {[%clk 0:00:18.5]} 40... gxf5 {[%clk 0:01:07.4]}
41. Rf2 {[%clk 0:00:17.9]} 41... Bd4 {[%clk 0:01:03.2]} 42. Re2 {[%clk
0:00:17.9]} 42... Be3 {[%clk 0:01:03.6]} 43. Rc2 {[%clk 0:00:15.3]} 43... Kf6
{[%clk 0:00:58.5]} 44. Be2 {[%clk 0:00:15.5]} 44... Ke5 {[%clk 0:00:58.1]} 45.
Bf3 {[%clk 0:00:14.6]} 45... Ra1 {[%clk 0:00:57]} 46. Re2 {[%clk 0:00:14.3]}
46... Kd4 {[%clk 0:00:56.6]} 47. Kh3 {[%clk 0:00:12.6]} 47... Ra8 {[%clk
0:00:45.1]} 48. g4 {[%clk 0:00:12.4]} 48... Rh8+ {[%clk 0:00:44.1]} 49. Kg2
{[%clk 0:00:11]} 49... f4 {[%clk 0:00:44.3]} 50. Re1 {[%clk 0:00:09]} 50... Ra8
{[%clk 0:00:40.9]} 51. Re2 {[%clk 0:00:06.7]} 51... Kd3 {[%clk 0:00:39.2]} 52.
Rb2 {[%clk 0:00:05.9]} 52... Ra1 {[%clk 0:00:38.3]} 53. Kh3 {[%clk 0:00:04.1]}
53... Kd4 {[%clk 0:00:37.6]} 54. Re2 {[%clk 0:00:03.4]} 54... Rf1 {[%clk
0:00:35.5]} 55. Bg2 {[%clk 0:00:03.1]} 55... Rg1 {[%clk 0:00:32.5]} 56. g5
{[%clk 0:00:01.5]} 56... f3 {[%clk 0:00:25.7]} 57. Bxf3 {[%clk 0:00:01.7]} 57...
Rxg5 {[%clk 0:00:25.8]} 58. Rg2 {[%clk 0:00:02]} 58... Rf5 {[%clk 0:00:22.6]}
0-1

[Event "Early-Titled-Tuesday-Blitz-February-06-2024"]
[Site "Chess.com"]
[Date "2024.02.06"]
[Round "3"]
[White "Szparu"]
[Black "SmirnovAlexandrA"]
[Result "1-0"]
[WhiteElo "2822"]
[BlackElo "2610"]
[TimeControl "180+1"]
[EndTime "8:28:41 PST"]
[Termination "Szparu won by resignation"]

1. Nf3 {[%clk 0:03:00.9]} 1... Nf6 {[%clk 0:02:52.1]} 2. c4 {[%clk 0:03:00.8]}
2... g6 {[%clk 0:02:52]} 3. Nc3 {[%clk 0:03:00.7]} 3... Bg7 {[%clk 0:02:52.3]}
4. g3 {[%clk 0:03:00.9]} 4... O-O {[%clk 0:02:52.1]} 5. Bg2 {[%clk 0:03:01.5]}
5... d6 {[%clk 0:02:53]} 6. O-O {[%clk 0:03:01.5]} 6... c5 {[%clk 0:02:53.9]} 7.
d4 {[%clk 0:03:00.7]} 7... Nc6 {[%clk 0:02:50.6]} 8. d5 {[%clk 0:02:55.8]} 8...
Na5 {[%clk 0:02:50.3]} 9. Nd2 {[%clk 0:02:56.4]} 9... a6 {[%clk 0:02:44.1]} 10.
Rb1 {[%clk 0:02:55.7]} 10... Bd7 {[%clk 0:02:43]} 11. b3 {[%clk 0:02:50.9]}
11... b5 {[%clk 0:02:41.3]} 12. Bb2 {[%clk 0:02:47.4]} 12... bxc4 {[%clk
0:02:26.5]} 13. bxc4 {[%clk 0:02:46.2]} 13... Rb8 {[%clk 0:02:26.4]} 14. Qc2
{[%clk 0:02:25.7]} 14... e5 {[%clk 0:02:15.8]} 15. dxe6 {[%clk 0:01:56.2]} 15...
Bxe6 {[%clk 0:02:15.1]} 16. Nd5 {[%clk 0:01:51.2]} 16... Nxd5 {[%clk 0:02:02.6]}
17. cxd5 {[%clk 0:01:52.1]} 17... Bf5 {[%clk 0:01:49.2]} 18. e4 {[%clk
0:01:51.8]} 18... Rxb2 {[%clk 0:01:35.9]} 19. Rxb2 {[%clk 0:01:52.7]} 19... Bxb2
{[%clk 0:01:35.5]} 20. Qxb2 {[%clk 0:01:53.6]} 20... Bd7 {[%clk 0:01:33.7]} 21.
Rb1 {[%clk 0:01:49.4]} 21... Bb5 {[%clk 0:01:28.5]} 22. Bf1 {[%clk 0:01:44.4]}
22... Bxf1 {[%clk 0:01:27.8]} 23. Kxf1 {[%clk 0:01:45.3]} 23... f5 {[%clk
0:01:13.4]} 24. Qb6 {[%clk 0:01:44.6]} 24... fxe4 {[%clk 0:01:04.9]} 25. Qxd8
{[%clk 0:01:39.5]} 25... Rxd8 {[%clk 0:01:05.8]} 26. Nxe4 {[%clk 0:01:40.1]}
26... Nc4 {[%clk 0:01:03.4]} 27. Ke2 {[%clk 0:01:35.9]} 27... Re8 {[%clk
0:01:02.6]} 28. f3 {[%clk 0:01:35.9]} 28... Kf7 {[%clk 0:00:49.9]} 29. Kd3
{[%clk 0:01:27.4]} 29... Ne5+ {[%clk 0:00:49.2]} 30. Kc3 {[%clk 0:01:28.1]}
30... Rd8 {[%clk 0:00:46]} 31. Rb7+ {[%clk 0:01:27.2]} 31... Kf8 {[%clk
0:00:39.3]} 32. f4 {[%clk 0:01:04.1]} 32... Ng4 {[%clk 0:00:31.6]} 33. Rxh7
{[%clk 0:00:50.5]} 33... Ne3 {[%clk 0:00:31.7]} 34. Nf6 {[%clk 0:00:48]} 34...
a5 {[%clk 0:00:19.5]} 35. a4 {[%clk 0:00:47]} 35... Nf1 {[%clk 0:00:14.9]} 36.
g4 {[%clk 0:00:43.8]} 36... Ne3 {[%clk 0:00:14.5]} 37. g5 {[%clk 0:00:43.8]}
37... Nf5 {[%clk 0:00:14.7]} 38. h4 {[%clk 0:00:41.4]} 38... Ng7 {[%clk
0:00:14.8]} 39. Kc4 {[%clk 0:00:26.5]} 39... Kf7 {[%clk 0:00:14.8]} 40. h5
{[%clk 0:00:26.8]} 40... gxh5 {[%clk 0:00:15.3]} 41. Nxh5 {[%clk 0:00:24.7]}
41... Rg8 {[%clk 0:00:15.4]} 42. f5 {[%clk 0:00:23.1]} 42... Kf8 {[%clk
0:00:14.9]} 43. Nf6 {[%clk 0:00:21.7]} 43... Nxf5 {[%clk 0:00:13]} 44. Nxg8
{[%clk 0:00:20.9]} 44... Kxg8 {[%clk 0:00:13.9]} 45. Rd7 {[%clk 0:00:17.7]}
45... Kf8 {[%clk 0:00:12.6]} 46. g6 {[%clk 0:00:14.9]} 46... Kg8 {[%clk
0:00:12.6]} 47. Kb5 {[%clk 0:00:13.4]} 47... Kf8 {[%clk 0:00:12.4]} 48. Kxa5
{[%clk 0:00:12.9]} 48... c4 {[%clk 0:00:12.9]} 49. Kb4 {[%clk 0:00:13.2]} 49...
Ne3 {[%clk 0:00:12.3]} 50. a5 {[%clk 0:00:10.9]} 50... Nxd5+ {[%clk 0:00:11.6]}
51. Kxc4 {[%clk 0:00:10.9]} 51... Nf6 {[%clk 0:00:11.3]} 52. Rxd6 {[%clk
0:00:10.8]} 52... Ng4 {[%clk 0:00:10.4]} 53. a6 {[%clk 0:00:10.6]} 53... Ne5+
{[%clk 0:00:11]} 54. Kd5 {[%clk 0:00:10.3]} 1-0

[Event "Early-Titled-Tuesday-Blitz-February-06-2024"]
[Site "Chess.com"]
[Date "2024.02.06"]
[Round "3"]
[White "volkanyirik"]
[Black "SahibSinghKnight"]
[Result "0-1"]
[WhiteElo "2431"]
[BlackElo "2653"]
[TimeControl "180+1"]
[EndTime "8:28:41 PST"]
[Termination "SahibSinghKnight won on time"]

1. e4 {[%clk 0:03:00.9]} 1... e6 {[%clk 0:02:58.8]} 2. Nc3 {[%clk 0:03:01.5]}
2... d5 {[%clk 0:02:58.9]} 3. d4 {[%clk 0:03:01.9]} 3... Nf6 {[%clk 0:02:53.2]}
4. Bg5 {[%clk 0:02:51.8]} 4... Bb4 {[%clk 0:02:52.2]} 5. exd5 {[%clk 0:02:49.3]}
5... Qxd5 {[%clk 0:02:50.9]} 6. Nf3 {[%clk 0:02:45.1]} 6... Ne4 {[%clk
0:02:44.7]} 7. Bd2 {[%clk 0:02:44.5]} 7... Bxc3 {[%clk 0:02:40.7]} 8. bxc3
{[%clk 0:02:42]} 8... Nxd2 {[%clk 0:02:30.5]} 9. Qxd2 {[%clk 0:02:41]} 9... O-O
{[%clk 0:02:30.2]} 10. Bd3 {[%clk 0:02:40.6]} 10... b6 {[%clk 0:02:29.1]} 11.
O-O {[%clk 0:02:40.1]} 11... Bb7 {[%clk 0:02:27.6]} 12. Rfe1 {[%clk 0:02:39.6]}
12... Qh5 {[%clk 0:02:26.1]} 13. Be4 {[%clk 0:02:39.2]} 13... Bxe4 {[%clk
0:02:18.5]} 14. Rxe4 {[%clk 0:02:38.2]} 14... Nd7 {[%clk 0:02:18.5]} 15. Ne5
{[%clk 0:02:29]} 15... Nf6 {[%clk 0:02:17.5]} 16. Re3 {[%clk 0:02:23.5]} 16...
Rfd8 {[%clk 0:02:01.7]} 17. Qe1 {[%clk 0:02:10.7]} 17... Qf5 {[%clk 0:01:54.7]}
18. Qe2 {[%clk 0:02:07.6]} 18... Rd6 {[%clk 0:01:41.3]} 19. Re1 {[%clk
0:01:59.7]} 19... Rad8 {[%clk 0:01:35.1]} 20. Rf3 {[%clk 0:01:58.4]} 20... Qh5
{[%clk 0:01:33]} 21. Qe3 {[%clk 0:01:48.2]} 21... Nd5 {[%clk 0:01:07.2]} 22. Qd3
{[%clk 0:01:47.8]} 22... f6 {[%clk 0:01:02.2]} 23. Nc4 {[%clk 0:01:38.6]} 23...
Rc6 {[%clk 0:01:01.9]} 24. Rh3 {[%clk 0:01:10.5]} 24... Qf5 {[%clk 0:00:59.6]}
25. Qf1 {[%clk 0:00:58.6]} 25... Qxc2 {[%clk 0:00:47]} 26. Ne3 {[%clk
0:00:51.1]} 26... Qg6 {[%clk 0:00:44.4]} 27. c4 {[%clk 0:00:44.2]} 27... Nf4
{[%clk 0:00:42.8]} 28. Rg3 {[%clk 0:00:44.3]} 28... Qd3 {[%clk 0:00:26.6]} 29.
Qxd3 {[%clk 0:00:35.5]} 29... Nxd3 {[%clk 0:00:26.6]} 30. Rd1 {[%clk 0:00:35.9]}
30... Nb2 {[%clk 0:00:24.6]} 31. Re1 {[%clk 0:00:27.2]} 31... Rxd4 {[%clk
0:00:21.6]} 32. h3 {[%clk 0:00:24.3]} 32... Nxc4 {[%clk 0:00:21.6]} 33. Ng4
{[%clk 0:00:23.5]} 33... Kf8 {[%clk 0:00:19.5]} 34. Rc3 {[%clk 0:00:20.8]} 34...
e5 {[%clk 0:00:14.9]} 35. Rg3 {[%clk 0:00:13.3]} 35... Rc5 {[%clk 0:00:12.9]}
36. Kh2 {[%clk 0:00:13]} 36... Nd6 {[%clk 0:00:12.6]} 37. Ne3 {[%clk 0:00:12.8]}
37... Ne4 {[%clk 0:00:12.5]} 38. Rf3 {[%clk 0:00:12.8]} 38... Nd2 {[%clk
0:00:11.9]} 39. Rg3 {[%clk 0:00:12.8]} 39... g6 {[%clk 0:00:11.2]} 40. Ng4
{[%clk 0:00:11.4]} 40... Kg7 {[%clk 0:00:11.5]} 41. Rge3 {[%clk 0:00:10]} 41...
Nc4 {[%clk 0:00:11.2]} 42. Rg3 {[%clk 0:00:09.5]} 42... Nd6 {[%clk 0:00:09.7]}
43. Ne3 {[%clk 0:00:09.2]} 43... Kf7 {[%clk 0:00:09.8]} 44. f3 {[%clk
0:00:08.7]} 44... h5 {[%clk 0:00:09.9]} 45. Re2 {[%clk 0:00:04]} 45... Rc3
{[%clk 0:00:09.2]} 46. Nc2 {[%clk 0:00:02.4]} 46... Rdc4 {[%clk 0:00:08.7]} 47.
Ne3 {[%clk 0:00:02]} 47... Rxe3 {[%clk 0:00:07.8]} 48. Rxe3 {[%clk 0:00:01.7]}
48... Nf5 {[%clk 0:00:08.7]} 49. f4 {[%clk 0:00:02]} 49... exf4 {[%clk
0:00:08.4]} 50. Rc3 {[%clk 0:00:02.2]} 50... fxg3+ {[%clk 0:00:08.6]} 0-1

[Event "Early-Titled-Tuesday-Blitz-February-06-2024"]
[Site "Chess.com"]
[Date "2024.02.06"]
[Round "3"]
[White "Arigu07"]
[Black "annamaja"]
[Result "0-1"]
[WhiteElo "2553"]
[BlackElo "2394"]
[TimeControl "180+1"]
[EndTime "8:28:41 PST"]
[Termination "annamaja won by resignation"]

1. a3 {[%clk 0:03:00.3]} 1... d5 {[%clk 0:02:58.7]} 2. d4 {[%clk 0:02:59.9]}
2... a6 {[%clk 0:02:57.4]} 3. a4 {[%clk 0:02:59.3]} 3... a5 {[%clk 0:02:56.2]}
4. Nf3 {[%clk 0:02:58.3]} 4... Nf6 {[%clk 0:02:56]} 5. Bf4 {[%clk 0:02:58.7]}
5... c6 {[%clk 0:02:47.7]} 6. c3 {[%clk 0:02:56.7]} 6... Bf5 {[%clk 0:02:45]} 7.
Nbd2 {[%clk 0:02:54.8]} 7... Nbd7 {[%clk 0:02:41.2]} 8. h3 {[%clk 0:02:54.6]}
8... h6 {[%clk 0:02:38.4]} 9. g4 {[%clk 0:02:54.2]} 9... Bh7 {[%clk 0:02:32.8]}
10. Bg2 {[%clk 0:02:45.3]} 10... e6 {[%clk 0:02:32.7]} 11. e3 {[%clk 0:02:43.5]}
11... Qb6 {[%clk 0:02:18]} 12. Qc1 {[%clk 0:02:34.8]} 12... c5 {[%clk
0:02:15.2]} 13. O-O {[%clk 0:02:30.6]} 13... Bd6 {[%clk 0:02:01.1]} 14. Bxd6
{[%clk 0:02:25.7]} 14... Qxd6 {[%clk 0:02:02]} 15. Ra3 {[%clk 0:02:25]} 15...
O-O {[%clk 0:01:52.6]} 16. Rb3 {[%clk 0:02:24]} 16... c4 {[%clk 0:01:29.5]} 17.
Ra3 {[%clk 0:01:26.2]} 17... Bd3 {[%clk 0:01:19.1]} 18. Re1 {[%clk 0:01:26]}
18... Ne4 {[%clk 0:01:14.2]} 19. Nxe4 {[%clk 0:01:18.7]} 19... dxe4 {[%clk
0:01:10.1]} 20. Nd2 {[%clk 0:01:12.7]} 20... f5 {[%clk 0:01:08.8]} 21. Qd1
{[%clk 0:01:13]} 21... Nf6 {[%clk 0:00:57.6]} 22. Bf1 {[%clk 0:00:57.8]} 22...
fxg4 {[%clk 0:00:35.1]} 23. hxg4 {[%clk 0:00:57.1]} 23... Rac8 {[%clk
0:00:18.4]} 24. Ra1 {[%clk 0:00:51.3]} 24... Qd5 {[%clk 0:00:15.7]} 25. Bg2
{[%clk 0:00:38.9]} 25... Qg5 {[%clk 0:00:15]} 26. f4 {[%clk 0:00:39.5]} 26...
exf3 {[%clk 0:00:14.1]} 27. Nxf3 {[%clk 0:00:39.5]} 27... Qxg4 {[%clk
0:00:13.4]} 28. Ne5 {[%clk 0:00:40]} 28... Qxd1 {[%clk 0:00:09.2]} 29. Raxd1
{[%clk 0:00:38.9]} 29... Be4 {[%clk 0:00:09.6]} 30. Bf1 {[%clk 0:00:35.7]} 30...
Bd5 {[%clk 0:00:08.2]} 31. Re2 {[%clk 0:00:30.9]} 31... Ne4 {[%clk 0:00:07.8]}
32. Rg2 {[%clk 0:00:31.4]} 32... g5 {[%clk 0:00:07.1]} 33. Rh2 {[%clk
0:00:27.2]} 33... Kg7 {[%clk 0:00:07]} 34. Ng4 {[%clk 0:00:23.5]} 34... Rh8
{[%clk 0:00:06]} 35. Bg2 {[%clk 0:00:22]} 35... h5 {[%clk 0:00:05.8]} 36. Ne5
{[%clk 0:00:12.3]} 36... g4 {[%clk 0:00:05.6]} 37. Bf1 {[%clk 0:00:10.5]} 37...
Ng5 {[%clk 0:00:05]} 38. Bg2 {[%clk 0:00:08.4]} 38... Rcf8 {[%clk 0:00:03.2]}
39. Re1 {[%clk 0:00:07]} 39... Be4 {[%clk 0:00:03]} 40. Nxc4 {[%clk 0:00:06.1]}
40... Bxg2 {[%clk 0:00:03.3]} 41. Kxg2 {[%clk 0:00:06.4]} 41... Nf3 {[%clk
0:00:04]} 42. Reh1 {[%clk 0:00:04.8]} 42... Nxh2 {[%clk 0:00:04.5]} 43. Rxh2
{[%clk 0:00:05.7]} 43... h4 {[%clk 0:00:05.2]} 44. Ne5 {[%clk 0:00:05.7]} 44...
g3 {[%clk 0:00:05.2]} 45. Rh1 {[%clk 0:00:06.2]} 45... Rf2+ {[%clk 0:00:05.7]}
46. Kh3 {[%clk 0:00:06.8]} 46... Rxb2 {[%clk 0:00:05.9]} 47. Nf3 {[%clk
0:00:06.7]} 47... Rb3 {[%clk 0:00:04.2]} 48. Rc1 {[%clk 0:00:06.2]} 48... Ra3
{[%clk 0:00:04.4]} 49. Nxh4 {[%clk 0:00:05.9]} 49... g2 {[%clk 0:00:04.3]} 50.
Rg1 {[%clk 0:00:05.1]} 50... Rxc3 {[%clk 0:00:04.8]} 51. Rxg2+ {[%clk 0:00:06]}
51... Kf6 {[%clk 0:00:05.5]} 52. Rg3 {[%clk 0:00:06.6]} 52... Ra3 {[%clk
0:00:04.5]} 53. Kg4 {[%clk 0:00:06.2]} 53... Rg8+ {[%clk 0:00:04.6]} 54. Kf4
{[%clk 0:00:06.5]} 54... Rxg3 {[%clk 0:00:05.2]} 55. Kxg3 {[%clk 0:00:07.4]}
55... Rxe3+ {[%clk 0:00:05.6]} 0-1